[Event "Late-Titled-Tuesday-Blitz-October-17-2023"]
[Site "Chess.com"]
[Date "2023.10.17"]
[Round "2"]
[White "SaqoChess_Twitch"]
[Black "FuenfgegenWilly"]
[Result "0-1"]
[WhiteElo "2580"]
[BlackElo "2374"]
[TimeControl "180+1"]
[EndTime "14:21:02 PDT"]
[Termination "FuenfgegenWilly won by checkmate"]

1. d4 {[%clk 0:03:00.9]} 1... d5 {[%clk 0:02:58]} 2. c4 {[%clk 0:03:01.4]} 2...
e5 {[%clk 0:02:57.4]} 3. Nc3 {[%clk 0:03:02.1]} 3... dxc4 {[%clk 0:02:56.1]} 4.
d5 {[%clk 0:03:00.3]} 4... c6 {[%clk 0:02:53.8]} 5. e4 {[%clk 0:02:59.2]} 5...
Nf6 {[%clk 0:02:49.9]} 6. Bxc4 {[%clk 0:02:58.8]} 6... Bb4 {[%clk 0:02:50.2]} 7.
Bg5 {[%clk 0:02:54.4]} 7... h6 {[%clk 0:02:46.4]} 8. Bxf6 {[%clk 0:02:52.6]}
8... Qxf6 {[%clk 0:02:47.3]} 9. Ne2 {[%clk 0:02:50.2]} 9... O-O {[%clk
0:02:40.1]} 10. O-O {[%clk 0:02:49.9]} 10... Qg6 {[%clk 0:02:31.1]} 11. Ng3
{[%clk 0:02:46.9]} 11... Nd7 {[%clk 0:02:23]} 12. dxc6 {[%clk 0:02:45]} 12...
bxc6 {[%clk 0:02:22.9]} 13. Qb3 {[%clk 0:02:37.8]} 13... a5 {[%clk 0:02:19.9]}
14. a3 {[%clk 0:02:37.8]} 14... Nc5 {[%clk 0:02:17.6]} 15. Qc2 {[%clk
0:02:35.6]} 15... Bxc3 {[%clk 0:02:17]} 16. bxc3 {[%clk 0:02:36.2]} 16... Be6
{[%clk 0:02:15.1]} 17. Qe2 {[%clk 0:02:31.4]} 17... Rfd8 {[%clk 0:02:03.4]} 18.
Bxe6 {[%clk 0:02:30.2]} 18... Qxe6 {[%clk 0:01:56.8]} 19. Qe3 {[%clk 0:02:27]}
19... Nd3 {[%clk 0:01:51.1]} 20. Rfd1 {[%clk 0:02:25.1]} 20... Nf4 {[%clk
0:01:50.3]} 21. Nf5 {[%clk 0:02:21.7]} 21... Kh7 {[%clk 0:01:47.6]} 22. g3
{[%clk 0:02:21.3]} 22... Ng6 {[%clk 0:01:32.4]} 23. h4 {[%clk 0:02:20.8]} 23...
Ne7 {[%clk 0:01:31.1]} 24. g4 {[%clk 0:02:17.2]} 24... Rab8 {[%clk 0:01:23.8]}
25. Rab1 {[%clk 0:02:13.3]} 25... Nxf5 {[%clk 0:01:21.2]} 26. exf5 {[%clk
0:02:11.4]} 26... Qf6 {[%clk 0:01:18.2]} 27. Qg3 {[%clk 0:02:02.3]} 27... Rxb1
{[%clk 0:01:11.8]} 28. Rxb1 {[%clk 0:02:02]} 28... Qd6 {[%clk 0:01:12.7]} 29. g5
{[%clk 0:01:53.2]} 29... Qxa3 {[%clk 0:01:07.9]} 30. g6+ {[%clk 0:01:51.3]}
30... fxg6 {[%clk 0:01:04.8]} 31. Qxg6+ {[%clk 0:01:45.3]} 31... Kh8 {[%clk
0:01:05.1]} 32. Rb7 {[%clk 0:01:36.6]} 32... Qf8 {[%clk 0:01:03.1]} 33. Rf7
{[%clk 0:01:33.3]} 33... Qg8 {[%clk 0:00:59.2]} 34. Kh2 {[%clk 0:01:30.5]} 34...
Rf8 {[%clk 0:00:59.3]} 35. Re7 {[%clk 0:01:27.3]} 35... Rf6 {[%clk 0:00:58.4]}
36. Qg4 {[%clk 0:01:19.4]} 36... Qf8 {[%clk 0:00:58.2]} 37. Rxe5 {[%clk
0:01:18.4]} 37... Qb8 {[%clk 0:00:53.6]} 38. Qg3 {[%clk 0:01:09.4]} 38... a4
{[%clk 0:00:49.3]} 39. Ra5 {[%clk 0:01:05.4]} 39... Qf8 {[%clk 0:00:40.4]} 40.
Rxa4 {[%clk 0:00:48]} 40... Rxf5 {[%clk 0:00:39.5]} 41. Kg2 {[%clk 0:00:48.5]}
41... Qf7 {[%clk 0:00:31.2]} 42. Rg4 {[%clk 0:00:40.3]} 42... Qd5+ {[%clk
0:00:27.7]} 43. Kh2 {[%clk 0:00:39.1]} 43... Qf7 {[%clk 0:00:27.9]} 44. Kg1
{[%clk 0:00:35.9]} 44... Kh7 {[%clk 0:00:26.4]} 45. Rd4 {[%clk 0:00:34.5]} 45...
Rf3 {[%clk 0:00:25]} 46. Qg2 {[%clk 0:00:21.4]} 46... Rxc3 {[%clk 0:00:20]} 47.
Rg4 {[%clk 0:00:12.1]} 47... Rc1+ {[%clk 0:00:18.9]} 48. Kh2 {[%clk 0:00:12.1]}
48... Rc5 {[%clk 0:00:17.2]} 49. Qe4+ {[%clk 0:00:12]} 49... Rf5 {[%clk
0:00:17]} 50. Kg2 {[%clk 0:00:07.6]} 50... g6 {[%clk 0:00:16.7]} 51. f3 {[%clk
0:00:07.3]} 51... c5 {[%clk 0:00:16.6]} 52. Rg3 {[%clk 0:00:05.8]} 52... c4
{[%clk 0:00:15.8]} 53. Kh2 {[%clk 0:00:05.7]} 53... Rc5 {[%clk 0:00:15.7]} 54.
Rg2 {[%clk 0:00:06]} 54... c3 {[%clk 0:00:15.4]} 55. Rc2 {[%clk 0:00:05.7]}
55... Rc7 {[%clk 0:00:14.2]} 56. Kg2 {[%clk 0:00:05.9]} 56... Qc4 {[%clk
0:00:11.4]} 57. Qxc4 {[%clk 0:00:03.2]} 57... Rxc4 {[%clk 0:00:12.3]} 58. Kg3
{[%clk 0:00:03.7]} 58... Kg7 {[%clk 0:00:12.7]} 59. Kf2 {[%clk 0:00:03.5]} 59...
Kf6 {[%clk 0:00:13.2]} 60. Ke3 {[%clk 0:00:04.3]} 60... Kf5 {[%clk 0:00:11.3]}
61. Kd3 {[%clk 0:00:04.9]} 61... Rf4 {[%clk 0:00:11.3]} 62. Kxc3 {[%clk
0:00:04.2]} 62... Rxf3+ {[%clk 0:00:11.7]} 63. Kd4 {[%clk 0:00:04.3]} 63... Rf4+
{[%clk 0:00:11.9]} 64. Ke3 {[%clk 0:00:04.8]} 64... Rxh4 {[%clk 0:00:12.8]} 65.
Rc5+ {[%clk 0:00:05.2]} 65... Kf6 {[%clk 0:00:13.1]} 66. Rc6+ {[%clk 0:00:05.7]}
66... Kf7 {[%clk 0:00:11.3]} 67. Rc7+ {[%clk 0:00:06.2]} 67... Kg8 {[%clk
0:00:11.4]} 68. Rc8+ {[%clk 0:00:06.6]} 68... Kg7 {[%clk 0:00:11.9]} 69. Rc7+
{[%clk 0:00:07.2]} 69... Kf8 {[%clk 0:00:12.1]} 70. Rc8+ {[%clk 0:00:07.6]}
70... Ke7 {[%clk 0:00:12.7]} 71. Rc7+ {[%clk 0:00:08]} 71... Kd6 {[%clk
0:00:12.6]} 72. Ra7 {[%clk 0:00:07.6]} 72... g5 {[%clk 0:00:12]} 73. Ra6+ {[%clk
0:00:07]} 73... Ke5 {[%clk 0:00:12.6]} 74. Kf3 {[%clk 0:00:06.1]} 74... Kf5
{[%clk 0:00:12.3]} 75. Kg3 {[%clk 0:00:06.1]} 75... Rg4+ {[%clk 0:00:12.3]} 76.
Kf3 {[%clk 0:00:06]} 76... Rh4 {[%clk 0:00:11]} 77. Kg3 {[%clk 0:00:05.8]} 77...
Ke5 {[%clk 0:00:10.4]} 78. Ra5+ {[%clk 0:00:05.7]} 78... Kf6 {[%clk 0:00:10.3]}
79. Ra6+ {[%clk 0:00:06]} 79... Kg7 {[%clk 0:00:10.3]} 80. Rb6 {[%clk
0:00:06.2]} 80... Rf4 {[%clk 0:00:10.3]} 81. Rc6 {[%clk 0:00:04.8]} 81... Rf6
{[%clk 0:00:10.6]} 82. Rc8 {[%clk 0:00:05.3]} 82... Kg6 {[%clk 0:00:11.2]} 83.
Rg8+ {[%clk 0:00:06]} 83... Kh5 {[%clk 0:00:11.6]} 84. Ra8 {[%clk 0:00:06.9]}
84... Rf4 {[%clk 0:00:11.6]} 85. Ra1 {[%clk 0:00:07.2]} 85... Rb4 {[%clk
0:00:11.8]} 86. Rh1+ {[%clk 0:00:07.8]} 86... Kg6 {[%clk 0:00:12.6]} 87. Ra1
{[%clk 0:00:08.5]} 87... Rb3+ {[%clk 0:00:13]} 88. Kg2 {[%clk 0:00:09.1]} 88...
Kh5 {[%clk 0:00:13.1]} 89. Ra4 {[%clk 0:00:09.6]} 89... g4 {[%clk 0:00:12.2]}
90. Ra5+ {[%clk 0:00:10.3]} 90... Kh4 {[%clk 0:00:12.6]} 91. Ra2 {[%clk
0:00:10.7]} 91... h5 {[%clk 0:00:12.8]} 92. Rc2 {[%clk 0:00:11.4]} 92... Rg3+
{[%clk 0:00:13]} 93. Kh2 {[%clk 0:00:11.5]} 93... Rh3+ {[%clk 0:00:13.4]} 94.
Kg2 {[%clk 0:00:12.1]} 94... Rg3+ {[%clk 0:00:14.1]} 95. Kh2 {[%clk 0:00:12.6]}
95... Ra3 {[%clk 0:00:15]} 96. Kg2 {[%clk 0:00:13.1]} 96... Ra4 {[%clk
0:00:15.2]} 97. Kh2 {[%clk 0:00:13.5]} 97... g3+ {[%clk 0:00:14.8]} 98. Kg2
{[%clk 0:00:14.1]} 98... Kg4 {[%clk 0:00:14.6]} 99. Rb2 {[%clk 0:00:14.5]} 99...
h4 {[%clk 0:00:14.7]} 100. Rb1 {[%clk 0:00:14.9]} 100... Ra2+ {[%clk 0:00:14.3]}
101. Kg1 {[%clk 0:00:15.3]} 101... Kh3 {[%clk 0:00:14.1]} 102. Rc1 {[%clk
0:00:15.6]} 102... Rg2+ {[%clk 0:00:13.6]} 103. Kh1 {[%clk 0:00:15.5]} 103...
Rh2+ {[%clk 0:00:13.1]} 104. Kg1 {[%clk 0:00:15.9]} 104... Rg2+ {[%clk
0:00:13.7]} 105. Kh1 {[%clk 0:00:16.1]} 105... Ra2 {[%clk 0:00:14.6]} 106. Kg1
{[%clk 0:00:16.6]} 106... Ra4 {[%clk 0:00:14.8]} 107. Rb1 {[%clk 0:00:17.3]}
107... Kg4 {[%clk 0:00:15.1]} 108. Rc1 {[%clk 0:00:17.3]} 108... h3 {[%clk
0:00:14.4]} 109. Rb1 {[%clk 0:00:17.5]} 109... Ra3 {[%clk 0:00:13.8]} 110. Rc1
{[%clk 0:00:13.9]} 110... Rf3 {[%clk 0:00:12.9]} 111. Rc4+ {[%clk 0:00:08.5]}
111... Rf4 {[%clk 0:00:13.1]} 112. Rc1 {[%clk 0:00:09.4]} 112... Kh4 {[%clk
0:00:06.5]} 113. Ra1 {[%clk 0:00:09.2]} 113... h2+ {[%clk 0:00:04.8]} 114. Kh1
{[%clk 0:00:05.2]} 114... Kh3 {[%clk 0:00:04.7]} 115. Rg1 {[%clk 0:00:03.7]}
115... g2+ {[%clk 0:00:02.3]} 116. Rxg2 {[%clk 0:00:04]} 116... Rf1+ {[%clk
0:00:03]} 117. Rg1 {[%clk 0:00:04.9]} 117... Rxg1# {[%clk 0:00:03.6]} 0-1

[Event "Late-Titled-Tuesday-Blitz-October-17-2023"]
[Site "Chess.com"]
[Date "2023.10.17"]
[Round "3"]
[White "Defend1r"]
[Black "NCchamp"]
[Result "1-0"]
[WhiteElo "2493"]
[BlackElo "2299"]
[TimeControl "180+1"]
[EndTime "14:24:38 PDT"]
[Termination "Defend1r won by checkmate"]

1. e4 {[%clk 0:02:54.2]} 1... c6 {[%clk 0:02:58.6]} 2. d4 {[%clk 0:02:53.6]}
2... d5 {[%clk 0:02:59.5]} 3. e5 {[%clk 0:02:53.9]} 3... Bf5 {[%clk 0:03:00.1]}
4. h4 {[%clk 0:02:54.1]} 4... h5 {[%clk 0:02:59.3]} 5. Bd3 {[%clk 0:02:51.9]}
5... Bxd3 {[%clk 0:02:58]} 6. Qxd3 {[%clk 0:02:52.8]} 6... e6 {[%clk 0:02:58.9]}
7. Bg5 {[%clk 0:02:53.3]} 7... Qa5+ {[%clk 0:02:57.7]} 8. Nd2 {[%clk 0:02:53.1]}
8... Qa6 {[%clk 0:02:48]} 9. c4 {[%clk 0:02:52.3]} 9... Nd7 {[%clk 0:02:43]} 10.
b3 {[%clk 0:02:51.4]} 10... Bb4 {[%clk 0:02:38.8]} 11. Nf3 {[%clk 0:02:51.1]}
11... Ne7 {[%clk 0:02:36.1]} 12. Bxe7 {[%clk 0:02:50.2]} 12... Bxe7 {[%clk
0:02:35.8]} 13. O-O {[%clk 0:02:49.5]} 13... Nf8 {[%clk 0:02:29]} 14. a4 {[%clk
0:02:48.1]} 14... Ng6 {[%clk 0:02:27.8]} 15. g3 {[%clk 0:02:48.4]} 15... Qb6
{[%clk 0:02:27.2]} 16. a5 {[%clk 0:02:48.2]} 16... Qc7 {[%clk 0:02:26.5]} 17.
Rfc1 {[%clk 0:02:46]} 17... O-O {[%clk 0:02:20]} 18. Ng5 {[%clk 0:02:45.5]}
18... Qd7 {[%clk 0:02:10.7]} 19. Qf3 {[%clk 0:02:41]} 19... Bxg5 {[%clk
0:02:07.4]} 20. hxg5 {[%clk 0:02:41.9]} 20... h4 {[%clk 0:02:08.1]} 21. Qh5
{[%clk 0:02:40.3]} 21... hxg3 {[%clk 0:02:05.4]} 22. fxg3 {[%clk 0:02:38.4]}
22... Rfc8 {[%clk 0:02:02.3]} 23. Kg2 {[%clk 0:02:37.4]} 23... c5 {[%clk
0:02:00.7]} 24. Rh1 {[%clk 0:02:35.3]} 24... cxd4 {[%clk 0:01:59.7]} 25. Raf1
{[%clk 0:02:31.8]} 25... dxc4 {[%clk 0:01:57.7]} 26. Qh7+ {[%clk 0:02:31.2]}
26... Kf8 {[%clk 0:01:57.9]} 27. Qxg6 {[%clk 0:02:31.4]} 27... Qd5+ {[%clk
0:01:28.6]} 28. Ne4 {[%clk 0:02:31.3]} 28... Rc7 {[%clk 0:01:23.6]} 29. Rh8+
{[%clk 0:02:30.6]} 29... Ke7 {[%clk 0:01:24.1]} 30. Qxf7# {[%clk 0:02:31.5]} 1-0

[Event "Late-Titled-Tuesday-Blitz-October-17-2023"]
[Site "Chess.com"]
[Date "2023.10.17"]
[Round "3"]
[White "borocotoajua"]
[Black "LogoCzar"]
[Result "1-0"]
[WhiteElo "2571"]
[BlackElo "2373"]
[TimeControl "180+1"]
[EndTime "14:25:02 PDT"]
[Termination "borocotoajua won by checkmate"]

1. d4 {[%clk 0:03:00.9]} 1... Nf6 {[%clk 0:02:58.4]} 2. Nf3 {[%clk 0:03:01]}
2... d5 {[%clk 0:02:58.3]} 3. c4 {[%clk 0:03:01.4]} 3... c6 {[%clk 0:02:58.4]}
4. g3 {[%clk 0:03:01]} 4... e6 {[%clk 0:02:57.9]} 5. Qc2 {[%clk 0:02:59.1]} 5...
Nbd7 {[%clk 0:02:57.5]} 6. Nbd2 {[%clk 0:02:59.2]} 6... b6 {[%clk 0:02:55.7]} 7.
Bg2 {[%clk 0:02:59.3]} 7... Bb7 {[%clk 0:02:55.8]} 8. O-O {[%clk 0:02:59.1]}
8... Rc8 {[%clk 0:02:55.8]} 9. e4 {[%clk 0:02:53.6]} 9... dxe4 {[%clk
0:02:50.5]} 10. Nxe4 {[%clk 0:02:49.1]} 10... c5 {[%clk 0:02:50.2]} 11. Nxf6+
{[%clk 0:02:30.3]} 11... Qxf6 {[%clk 0:02:48.1]} 12. d5 {[%clk 0:02:21.7]} 12...
Be7 {[%clk 0:02:29.1]} 13. Re1 {[%clk 0:02:13.1]} 13... O-O {[%clk 0:02:23.1]}
14. Bg5 {[%clk 0:02:11.9]} 14... Qxf3 {[%clk 0:02:05.2]} 15. Bxf3 {[%clk
0:02:10.6]} 15... Bxg5 {[%clk 0:02:04.7]} 16. dxe6 {[%clk 0:02:06.1]} 16... Bxf3
{[%clk 0:02:02.7]} 17. exd7 {[%clk 0:02:06.3]} 17... Rcd8 {[%clk 0:02:02.1]} 18.
Qf5 {[%clk 0:02:06.1]} 18... Bd2 {[%clk 0:01:58.3]} 19. Qxf3 {[%clk 0:01:59.9]}
19... Bxe1 {[%clk 0:01:57.8]} 20. Rxe1 {[%clk 0:02:00.8]} 20... Rxd7 {[%clk
0:01:55]} 21. Qf5 {[%clk 0:01:59.9]} 21... Rdd8 {[%clk 0:01:49]} 22. Re7 {[%clk
0:01:59.2]} 22... Rd2 {[%clk 0:01:44.5]} 23. Qe5 {[%clk 0:01:53.9]} 23... h6
{[%clk 0:01:41.5]} 24. h4 {[%clk 0:01:49.5]} 24... Rfd8 {[%clk 0:01:38.9]} 25.
Re8+ {[%clk 0:01:49]} 25... Kh7 {[%clk 0:01:37.6]} 26. Qf5+ {[%clk 0:01:47.6]}
26... g6 {[%clk 0:01:35.7]} 27. Qxf7# {[%clk 0:01:47.6]} 1-0

[Event "Late-Titled-Tuesday-Blitz-October-17-2023"]
[Site "Chess.com"]
[Date "2023.10.17"]
[Round "3"]
[White "Mikasinski"]
[Black "Beca95"]
[Result "1/2-1/2"]
[WhiteElo "2689"]
[BlackElo "2913"]
[TimeControl "180+1"]
[EndTime "14:25:09 PDT"]
[Termination "Game drawn by repetition"]

1. e4 {[%clk 0:03:00.9]} 1... e5 {[%clk 0:03:00.2]} 2. Nf3 {[%clk 0:03:00.5]}
2... Nc6 {[%clk 0:03:00.6]} 3. Nc3 {[%clk 0:03:00.6]} 3... Nf6 {[%clk
0:03:00.3]} 4. Bb5 {[%clk 0:03:00.7]} 4... Bd6 {[%clk 0:02:46]} 5. Bxc6 {[%clk
0:02:59.4]} 5... dxc6 {[%clk 0:02:45.3]} 6. d4 {[%clk 0:02:59.9]} 6... Bg4
{[%clk 0:02:42.7]} 7. dxe5 {[%clk 0:02:55.2]} 7... Bxf3 {[%clk 0:02:42.8]} 8.
Qxf3 {[%clk 0:02:54.5]} 8... Bxe5 {[%clk 0:02:43]} 9. Bf4 {[%clk 0:02:53.9]}
9... Qe7 {[%clk 0:02:43.2]} 10. Bxe5 {[%clk 0:02:53.6]} 10... Qxe5 {[%clk
0:02:44.1]} 11. O-O-O {[%clk 0:02:54.2]} 11... O-O {[%clk 0:02:42.6]} 12. Qg3
{[%clk 0:02:54.1]} 12... Qxg3 {[%clk 0:02:38.7]} 13. hxg3 {[%clk 0:02:53.9]}
13... Rfe8 {[%clk 0:02:38.4]} 14. f3 {[%clk 0:02:54.1]} 14... Rad8 {[%clk
0:02:30.7]} 15. g4 {[%clk 0:02:54.4]} 15... h6 {[%clk 0:02:30.4]} 16. Rd2 {[%clk
0:02:52.4]} 16... Rxd2 {[%clk 0:02:29.2]} 17. Kxd2 {[%clk 0:02:52.9]} 17... Nd7
{[%clk 0:02:22.4]} 18. Ke3 {[%clk 0:02:51.7]} 18... Ne5 {[%clk 0:02:22.4]} 19.
b3 {[%clk 0:02:50.9]} 19... b6 {[%clk 0:02:19.1]} 20. Rd1 {[%clk 0:02:51]} 20...
g5 {[%clk 0:02:18.2]} 21. Ne2 {[%clk 0:02:49.4]} 21... Kg7 {[%clk 0:02:09]} 22.
Ng3 {[%clk 0:02:47]} 22... Kg6 {[%clk 0:02:09.5]} 23. Nf5 {[%clk 0:02:44.6]}
23... a5 {[%clk 0:02:08.8]} 24. a4 {[%clk 0:02:44.4]} 24... Rh8 {[%clk
0:02:03.5]} 25. Rh1 {[%clk 0:02:29.6]} 25... f6 {[%clk 0:01:52.4]} 26. Ke2
{[%clk 0:02:13.9]} 26... Rh7 {[%clk 0:01:35.1]} 27. Rd1 {[%clk 0:02:10.1]} 27...
Rh8 {[%clk 0:01:34.2]} 28. Ke3 {[%clk 0:02:09.3]} 28... Kf7 {[%clk 0:01:28.5]}
29. Rh1 {[%clk 0:02:08.2]} 29... Kg6 {[%clk 0:01:28.7]} 30. Rd1 {[%clk
0:02:08.5]} 30... Kf7 {[%clk 0:01:16.1]} 31. Rh1 {[%clk 0:02:07.9]} 31... Kg6
{[%clk 0:01:16.4]} 1/2-1/2

[Event "Late-Titled-Tuesday-Blitz-October-17-2023"]
[Site "Chess.com"]
[Date "2023.10.17"]
[Round "3"]
[White "stefan_95"]
[Black "vugarrasulov"]
[Result "0-1"]
[WhiteElo "2716"]
[BlackElo "2966"]
[TimeControl "180+1"]
[EndTime "14:25:35 PDT"]
[Termination "vugarrasulov won by resignation"]

1. d4 {[%clk 0:03:00.9]} 1... Nf6 {[%clk 0:02:59.7]} 2. Nf3 {[%clk 0:03:01.4]}
2... c5 {[%clk 0:02:59.9]} 3. d5 {[%clk 0:03:01.5]} 3... e6 {[%clk 0:03:00.5]}
4. c4 {[%clk 0:03:00.2]} 4... exd5 {[%clk 0:02:59.5]} 5. cxd5 {[%clk 0:03:00.1]}
5... d6 {[%clk 0:03:00.2]} 6. Nc3 {[%clk 0:03:00.1]} 6... g6 {[%clk 0:02:59.8]}
7. h3 {[%clk 0:02:59]} 7... Bg7 {[%clk 0:02:59.4]} 8. Bf4 {[%clk 0:02:59.6]}
8... O-O {[%clk 0:02:58.8]} 9. e3 {[%clk 0:03:00.2]} 9... Na6 {[%clk 0:02:52.4]}
10. Be2 {[%clk 0:02:59.2]} 10... Nc7 {[%clk 0:02:50.9]} 11. e4 {[%clk
0:02:46.2]} 11... b5 {[%clk 0:02:42.3]} 12. Nd2 {[%clk 0:02:37.6]} 12... b4
{[%clk 0:02:40.3]} 13. Na4 {[%clk 0:02:35.6]} 13... Re8 {[%clk 0:02:37.1]} 14.
f3 {[%clk 0:02:34.9]} 14... Ncxd5 {[%clk 0:02:24.6]} 15. exd5 {[%clk 0:02:33.6]}
15... Nxd5 {[%clk 0:02:25.5]} 16. Bh2 {[%clk 0:02:15.2]} 16... Ne3 {[%clk
0:02:19.6]} 17. Qb3 {[%clk 0:02:05.8]} 17... Nxg2+ {[%clk 0:01:57.2]} 18. Kf2
{[%clk 0:02:05.8]} 18... Bd4+ {[%clk 0:01:56.6]} 19. Kxg2 {[%clk 0:02:01]} 19...
Rxe2+ {[%clk 0:01:56]} 20. Kf1 {[%clk 0:01:59.5]} 20... Rxd2 {[%clk 0:01:55.3]}
21. Qd5 {[%clk 0:01:41.7]} 21... Qe7 {[%clk 0:01:40.6]} 22. Qe4 {[%clk
0:01:09.7]} 22... Ba6+ {[%clk 0:01:36.8]} 23. Ke1 {[%clk 0:01:07.5]} 23... Re2+
{[%clk 0:01:37.2]} 0-1

[Event "Late-Titled-Tuesday-Blitz-October-17-2023"]
[Site "Chess.com"]
[Date "2023.10.17"]
[Round "3"]
[White "The_Princess_Moon"]
[Black "SaqoChess_Twitch"]
[Result "0-1"]
[WhiteElo "2328"]
[BlackElo "2583"]
[TimeControl "180+1"]
[EndTime "14:25:39 PDT"]
[Termination "SaqoChess_Twitch won by resignation"]

1. e4 {[%clk 0:03:00.9]} 1... c5 {[%clk 0:02:59.9]} 2. Nf3 {[%clk 0:03:00.8]}
2... d6 {[%clk 0:02:59.8]} 3. c3 {[%clk 0:03:00.3]} 3... Nf6 {[%clk 0:02:59.4]}
4. h3 {[%clk 0:03:00]} 4... g6 {[%clk 0:02:58.2]} 5. Bd3 {[%clk 0:02:59.3]} 5...
Bg7 {[%clk 0:02:58.4]} 6. Bc2 {[%clk 0:02:59.2]} 6... O-O {[%clk 0:02:59]} 7.
O-O {[%clk 0:02:57.3]} 7... Nc6 {[%clk 0:02:58.7]} 8. Re1 {[%clk 0:02:52.8]}
8... d5 {[%clk 0:02:57.7]} 9. e5 {[%clk 0:02:52.3]} 9... Nd7 {[%clk 0:02:54.6]}
10. d4 {[%clk 0:02:51.5]} 10... f6 {[%clk 0:02:54.1]} 11. e6 {[%clk 0:02:44.9]}
11... Ndb8 {[%clk 0:02:45.7]} 12. dxc5 {[%clk 0:02:44.3]} 12... Na6 {[%clk
0:02:45.7]} 13. b4 {[%clk 0:02:43.1]} 13... Nc7 {[%clk 0:02:45.3]} 14. Bb3
{[%clk 0:02:37.5]} 14... Bxe6 {[%clk 0:02:42.4]} 15. b5 {[%clk 0:02:16.3]} 15...
Ne5 {[%clk 0:02:38.4]} 16. b6 {[%clk 0:02:09.5]} 16... axb6 {[%clk 0:02:37]} 17.
cxb6 {[%clk 0:02:10.4]} 17... Nb5 {[%clk 0:02:36.9]} 18. Nd4 {[%clk 0:02:05.1]}
18... Bd7 {[%clk 0:02:33.7]} 19. Nxb5 {[%clk 0:02:02.2]} 19... Bxb5 {[%clk
0:02:33.4]} 20. Bxd5+ {[%clk 0:02:00.8]} 20... Kh8 {[%clk 0:02:32.1]} 21. Bxb7
{[%clk 0:01:57.8]} 21... Rb8 {[%clk 0:02:32]} 22. Be4 {[%clk 0:01:52.2]} 22...
Qxb6 {[%clk 0:02:29.5]} 23. Be3 {[%clk 0:01:50.6]} 23... Qa6 {[%clk 0:02:29.9]}
24. a4 {[%clk 0:01:48.4]} 24... Bc4 {[%clk 0:02:30.2]} 25. Nd2 {[%clk
0:01:46.9]} 25... Rfd8 {[%clk 0:02:30.6]} 26. Qc2 {[%clk 0:01:42.7]} 26... Bd3
{[%clk 0:02:30.6]} 27. Bxd3 {[%clk 0:01:42.3]} 27... Nxd3 {[%clk 0:02:29.9]} 28.
Reb1 {[%clk 0:01:40.3]} 28... Rbc8 {[%clk 0:02:27.8]} 29. a5 {[%clk 0:01:30]}
29... f5 {[%clk 0:02:27.5]} 30. Rb6 {[%clk 0:01:28]} 30... Qa8 {[%clk
0:02:28.2]} 31. Ra3 {[%clk 0:01:23.4]} 31... f4 {[%clk 0:02:28.7]} 32. c4 {[%clk
0:00:48.6]} 32... fxe3 {[%clk 0:02:27]} 33. Ne4 {[%clk 0:00:48.7]} 33... exf2+
{[%clk 0:02:26.6]} 34. Nxf2 {[%clk 0:00:47.7]} 34... Nxf2 {[%clk 0:02:26.5]} 35.
Kxf2 {[%clk 0:00:48.6]} 35... Bd4+ {[%clk 0:02:26.3]} 36. Kf1 {[%clk 0:00:47.5]}
36... Rf8+ {[%clk 0:02:24.4]} 0-1

[Event "Late-Titled-Tuesday-Blitz-October-17-2023"]
[Site "Chess.com"]
[Date "2023.10.17"]
[Round "3"]
[White "Walter_White_Poland"]
[Black "Chessdreamer2020"]
[Result "0-1"]
[WhiteElo "2322"]
[BlackElo "2495"]
[TimeControl "180+1"]
[EndTime "14:26:29 PDT"]
[Termination "Chessdreamer2020 won by resignation"]

1. e4 {[%clk 0:03:00.9]} 1... d6 {[%clk 0:03:00.2]} 2. d4 {[%clk 0:03:00.4]}
2... Nf6 {[%clk 0:03:00.8]} 3. Nc3 {[%clk 0:03:00.7]} 3... c6 {[%clk 0:03:00.9]}
4. a4 {[%clk 0:03:00.1]} 4... e5 {[%clk 0:03:00.6]} 5. dxe5 {[%clk 0:02:59.4]}
5... dxe5 {[%clk 0:03:00.7]} 6. Qxd8+ {[%clk 0:02:59.4]} 6... Kxd8 {[%clk
0:03:01.6]} 7. Bc4 {[%clk 0:02:59]} 7... Bb4 {[%clk 0:03:02.2]} 8. Bg5 {[%clk
0:02:54.6]} 8... Ke7 {[%clk 0:03:02]} 9. f4 {[%clk 0:02:38.8]} 9... h6 {[%clk
0:02:38]} 10. fxe5 {[%clk 0:02:37]} 10... hxg5 {[%clk 0:02:37.8]} 11. exf6+
{[%clk 0:02:36.8]} 11... gxf6 {[%clk 0:02:38.7]} 12. Nf3 {[%clk 0:02:25.2]}
12... Be6 {[%clk 0:02:36.2]} 13. Bxe6 {[%clk 0:02:22.9]} 13... fxe6 {[%clk
0:02:36]} 14. e5 {[%clk 0:02:20.4]} 14... Nd7 {[%clk 0:02:14.9]} 15. exf6+
{[%clk 0:02:09.7]} 15... Nxf6 {[%clk 0:02:15.8]} 16. O-O {[%clk 0:01:43.9]}
16... g4 {[%clk 0:02:15]} 17. Ne5 {[%clk 0:01:36.3]} 17... Rh6 {[%clk
0:01:59.6]} 18. Rxf6 {[%clk 0:00:50.9]} 18... Rxf6 {[%clk 0:01:50.1]} 19. Nxg4
{[%clk 0:00:50.8]} 19... Rf4 {[%clk 0:01:42.4]} 20. h3 {[%clk 0:00:46.3]} 20...
Rd8 {[%clk 0:01:33.9]} 21. Ne2 {[%clk 0:00:40.1]} 21... Bc5+ {[%clk 0:01:26.8]}
22. Kh1 {[%clk 0:00:34]} 22... Rxg4 {[%clk 0:01:25.2]} 0-1

[Event "Late-Titled-Tuesday-Blitz-October-17-2023"]
[Site "Chess.com"]
[Date "2023.10.17"]
[Round "3"]
[White "azikom"]
[Black "Chessbard1972"]
[Result "1-0"]
[WhiteElo "2610"]
[BlackElo "2328"]
[TimeControl "180+1"]
[EndTime "14:27:02 PDT"]
[Termination "azikom won by resignation"]

1. c4 {[%clk 0:03:00.9]} 1... e5 {[%clk 0:02:58.6]} 2. Nc3 {[%clk 0:03:00.8]}
2... Nc6 {[%clk 0:02:58.4]} 3. e3 {[%clk 0:03:01.7]} 3... f5 {[%clk 0:02:56.2]}
4. d4 {[%clk 0:03:01.4]} 4... Nf6 {[%clk 0:02:54.5]} 5. Nf3 {[%clk 0:03:00.1]}
5... e4 {[%clk 0:02:52.3]} 6. Nd2 {[%clk 0:03:00]} 6... g6 {[%clk 0:02:40]} 7.
Be2 {[%clk 0:02:57.3]} 7... Bg7 {[%clk 0:02:35.5]} 8. O-O {[%clk 0:02:50.7]}
8... d6 {[%clk 0:02:34.7]} 9. b4 {[%clk 0:02:50.3]} 9... O-O {[%clk 0:02:33.9]}
10. b5 {[%clk 0:02:49.8]} 10... Ne7 {[%clk 0:02:34.1]} 11. a4 {[%clk 0:02:50.4]}
11... g5 {[%clk 0:02:32.9]} 12. Ba3 {[%clk 0:02:48.6]} 12... Ng6 {[%clk
0:02:31.9]} 13. c5 {[%clk 0:02:48.1]} 13... d5 {[%clk 0:02:29.6]} 14. c6 {[%clk
0:02:47.9]} 14... Rf7 {[%clk 0:02:28.8]} 15. cxb7 {[%clk 0:02:47.6]} 15... Bxb7
{[%clk 0:02:28.8]} 16. Nb3 {[%clk 0:02:47.9]} 16... f4 {[%clk 0:02:15.5]} 17.
Na5 {[%clk 0:02:46.5]} 17... Rb8 {[%clk 0:02:10.4]} 18. Nxb7 {[%clk 0:02:45.9]}
18... Rxb7 {[%clk 0:02:10.6]} 19. Rc1 {[%clk 0:02:40.8]} 19... Nh4 {[%clk
0:02:09.2]} 20. Bg4 {[%clk 0:02:30.4]} 20... Qe8 {[%clk 0:01:56.3]} 21. Bh5
{[%clk 0:02:18.4]} 21... Nxh5 {[%clk 0:01:54.4]} 22. Qxh5 {[%clk 0:02:19.3]}
22... Qd8 {[%clk 0:01:47.2]} 23. Bc5 {[%clk 0:02:03]} 23... Bf8 {[%clk
0:01:15.3]} 24. Bxf8 {[%clk 0:01:56.1]} 24... Rxf8 {[%clk 0:01:14.6]} 25. exf4
{[%clk 0:01:45.8]} 25... Rxf4 {[%clk 0:01:04]} 26. Rfe1 {[%clk 0:01:19.4]} 26...
Rb6 {[%clk 0:01:00.7]} 27. Nxd5 {[%clk 0:00:57.5]} 27... Qxd5 {[%clk 0:00:53.6]}
28. Rxc7 {[%clk 0:00:55.7]} 28... Rg6 {[%clk 0:00:49.8]} 29. Qxh7+ {[%clk
0:00:52.7]} 29... Kf8 {[%clk 0:00:46.9]} 30. Rc8+ {[%clk 0:00:52.4]} 1-0